[Event "*** Titled Tuesday Blitz"]
[Site "Chess.com"]
[Date "2020.05.12"]
[Round "7"]
[White "uchenic"]
[Black "Caisachess"]
[Result "1/2-1/2"]
[WhiteElo "2455"]
[BlackElo "2314"]
[TimeControl "180+1"]
[EndTime "11:16:24 PDT"]
[Termination "Game drawn by repetition"]

1. d4 {[%clk 0:02:26.9]} 1... Nf6 {[%clk 0:02:59.1]} 2. c4 {[%clk 0:02:27.1]}
2... e6 {[%clk 0:02:59.2]} 3. Nf3 {[%clk 0:02:26.8]} 3... d5 {[%clk 0:02:59.6]}
4. g3 {[%clk 0:02:26.7]} 4... Be7 {[%clk 0:02:55.8]} 5. Bg2 {[%clk 0:02:26.8]}
5... O-O {[%clk 0:02:56.4]} 6. Nbd2 {[%clk 0:02:26.8]} 6... c5 {[%clk
0:02:54.5]} 7. cxd5 {[%clk 0:02:26.4]} 7... Nxd5 {[%clk 0:02:53.2]} 8. O-O
{[%clk 0:02:24]} 8... Nc6 {[%clk 0:02:52.3]} 9. dxc5 {[%clk 0:02:19.9]} 9...
Bxc5 {[%clk 0:02:51.5]} 10. Nb3 {[%clk 0:02:20.2]} 10... Be7 {[%clk 0:02:47.9]}
11. e4 {[%clk 0:02:16.6]} 11... Ndb4 {[%clk 0:02:46.4]} 12. Bd2 {[%clk
0:02:02.3]} 12... b6 {[%clk 0:02:39]} 13. Bc3 {[%clk 0:02:00.9]} 13... Ba6
{[%clk 0:02:36.8]} 14. Qxd8 {[%clk 0:01:58.3]} 14... Rfxd8 {[%clk 0:02:34]} 15.
Rfd1 {[%clk 0:01:56.5]} 15... Rac8 {[%clk 0:02:32.1]} 16. Nfd4 {[%clk
0:01:47.8]} 16... Nxd4 {[%clk 0:02:30.6]} 17. Nxd4 {[%clk 0:01:47.6]} 17... Nd3
{[%clk 0:02:11.7]} 18. Bf1 {[%clk 0:01:40.5]} 18... Nc5 {[%clk 0:02:11.5]} 19.
Bxa6 {[%clk 0:01:36.5]} 19... Nxa6 {[%clk 0:02:12.4]} 20. Nb5 {[%clk 0:01:36.3]}
20... Ra8 {[%clk 0:01:59.2]} 21. Rxd8+ {[%clk 0:01:26.6]} 21... Bxd8 {[%clk
0:01:57]} 22. Rd1 {[%clk 0:01:18.8]} 22... Nc5 {[%clk 0:01:47.1]} 23. f3 {[%clk
0:01:08.6]} 23... a6 {[%clk 0:01:46.6]} 24. Na7 {[%clk 0:01:03.5]} 24... Be7
{[%clk 0:01:38.4]} 25. Nc6 {[%clk 0:01:02.2]} 25... Bf8 {[%clk 0:01:36]} 26. Be5
{[%clk 0:00:45.6]} 26... Rc8 {[%clk 0:01:33.7]} 27. Na7 {[%clk 0:00:40]} 27...
Ra8 {[%clk 0:01:27.8]} 28. Nc6 {[%clk 0:00:40]} 28... f6 {[%clk 0:00:59.8]} 29.
Bc3 {[%clk 0:00:39.1]} 29... Rc8 {[%clk 0:00:58.9]} 30. Nd4 {[%clk 0:00:38.1]}
30... Kf7 {[%clk 0:00:57.6]} 31. Kf2 {[%clk 0:00:37.7]} 31... Rd8 {[%clk
0:00:55.4]} 32. Ke2 {[%clk 0:00:33.8]} 32... Na4 {[%clk 0:00:53.1]} 33. Nc6
{[%clk 0:00:30]} 33... Rxd1 {[%clk 0:00:52]} 34. Kxd1 {[%clk 0:00:30.3]} 34...
Nxc3+ {[%clk 0:00:46.9]} 35. bxc3 {[%clk 0:00:30.7]} 35... Bc5 {[%clk
0:00:45.6]} 36. Nb8 {[%clk 0:00:28.3]} 36... a5 {[%clk 0:00:43.9]} 37. a4 {[%clk
0:00:28.5]} 37... Ke7 {[%clk 0:00:43.4]} 38. Nc6+ {[%clk 0:00:24.1]} 38... Kd6
{[%clk 0:00:43.2]} 39. Nd4 {[%clk 0:00:20.3]} 39... g6 {[%clk 0:00:40.6]} 40.
Kc2 {[%clk 0:00:19.9]} 40... e5 {[%clk 0:00:37]} 41. Nb5+ {[%clk 0:00:19.7]}
41... Kc6 {[%clk 0:00:36.8]} 42. Kd3 {[%clk 0:00:18.3]} 42... Bg1 {[%clk
0:00:36.7]} 43. h3 {[%clk 0:00:18.8]} 43... Bh2 {[%clk 0:00:30.4]} 44. g4 {[%clk
0:00:19]} 44... Bg1 {[%clk 0:00:31]} 45. Kc4 {[%clk 0:00:19.1]} 45... Bc5 {[%clk
0:00:30.5]} 46. Na7+ {[%clk 0:00:19.2]} 46... Kb7 {[%clk 0:00:30.6]} 47. Nb5
{[%clk 0:00:19.8]} 47... Kc6 {[%clk 0:00:31.1]} 48. Na7+ {[%clk 0:00:20.2]}
48... Kb7 {[%clk 0:00:31.2]} 49. Nb5 {[%clk 0:00:20.6]} 49... Kc6 {[%clk
0:00:32.1]} 1/2-1/2

[Event "*** Titled Tuesday Blitz"]
[Site "Chess.com"]
[Date "2020.05.12"]
[Round "7"]
[White "Kapibara_Warri0r"]
[Black "MFguimaraes"]
[Result "0-1"]
[WhiteElo "2056"]
[BlackElo "2453"]
[TimeControl "180+1"]
[EndTime "11:16:26 PDT"]
[Termination "MFguimaraes won by checkmate"]

1. e4 {[%clk 0:03:00.9]} 1... e5 {[%clk 0:02:58.4]} 2. Nf3 {[%clk 0:03:00.5]}
2... Nc6 {[%clk 0:02:57.8]} 3. Bb5 {[%clk 0:03:00.4]} 3... Nf6 {[%clk
0:02:56.9]} 4. d3 {[%clk 0:02:59.4]} 4... Bc5 {[%clk 0:02:55.6]} 5. Nc3 {[%clk
0:02:57.8]} 5... d6 {[%clk 0:02:52.6]} 6. a3 {[%clk 0:02:54.8]} 6... a6 {[%clk
0:02:50.7]} 7. Ba4 {[%clk 0:02:54.1]} 7... h6 {[%clk 0:02:50.6]} 8. O-O {[%clk
0:02:52.8]} 8... Bg4 {[%clk 0:02:49.2]} 9. h3 {[%clk 0:02:52.2]} 9... Bh5 {[%clk
0:02:48.9]} 10. Be3 {[%clk 0:02:18.8]} 10... b5 {[%clk 0:02:46.8]} 11. Bb3
{[%clk 0:02:18]} 11... Nd4 {[%clk 0:02:45.5]} 12. Bxd4 {[%clk 0:02:11.5]} 12...
exd4 {[%clk 0:02:45.6]} 13. Nd5 {[%clk 0:02:10.9]} 13... c6 {[%clk 0:02:42.6]}
14. Nf4 {[%clk 0:02:07.5]} 14... Bxf3 {[%clk 0:02:33.6]} 15. Qxf3 {[%clk
0:02:06.4]} 15... O-O {[%clk 0:02:30.3]} 16. Ng6 {[%clk 0:01:48.6]} 16... Re8
{[%clk 0:02:29.2]} 17. Nh4 {[%clk 0:01:48.7]} 17... d5 {[%clk 0:02:14.6]} 18.
Rae1 {[%clk 0:01:37.2]} 18... dxe4 {[%clk 0:02:09.7]} 19. dxe4 {[%clk 0:01:36]}
19... Bd6 {[%clk 0:02:06.2]} 20. Nf5 {[%clk 0:01:34.5]} 20... Be5 {[%clk
0:02:05.2]} 21. Qe2 {[%clk 0:01:28.6]} 21... c5 {[%clk 0:01:53.7]} 22. f4 {[%clk
0:01:24.5]} 22... Bc7 {[%clk 0:01:51]} 23. c3 {[%clk 0:01:05.6]} 23... c4 {[%clk
0:01:49.3]} 24. Bd1 {[%clk 0:01:04.9]} 24... Rxe4 {[%clk 0:01:45.5]} 25. Qf3
{[%clk 0:00:45.7]} 25... Rxf4 {[%clk 0:01:41.9]} 26. Qc6 {[%clk 0:00:22.3]}
26... Rxf1+ {[%clk 0:01:41.1]} 27. Rxf1 {[%clk 0:00:23.2]} 27... Rc8 {[%clk
0:01:24.3]} 28. Qf3 {[%clk 0:00:16.2]} 28... dxc3 {[%clk 0:01:22.7]} 29. bxc3
{[%clk 0:00:16.4]} 29... Be5 {[%clk 0:01:16.8]} 30. Qe3 {[%clk 0:00:12.1]} 30...
Qc7 {[%clk 0:01:11.3]} 31. Bc2 {[%clk 0:00:09.7]} 31... Qc5 {[%clk 0:01:05.1]}
32. Nd4 {[%clk 0:00:06.9]} 32... Rd8 {[%clk 0:01:03.3]} 33. Rxf6 {[%clk
0:00:01.8]} 33... Bxf6 {[%clk 0:00:56.9]} 34. Qe4 {[%clk 0:00:02.2]} 34... Rxd4
{[%clk 0:00:52.8]} 35. Qh7+ {[%clk 0:00:01.8]} 35... Kf8 {[%clk 0:00:52.8]} 36.
Qh8+ {[%clk 0:00:02.2]} 36... Ke7 {[%clk 0:00:53.3]} 37. cxd4 {[%clk 0:00:02.9]}
37... Qxd4+ {[%clk 0:00:52.2]} 38. Kh1 {[%clk 0:00:03.4]} 38... Qa1+ {[%clk
0:00:51.2]} 39. Kh2 {[%clk 0:00:03.2]} 39... Be5+ {[%clk 0:00:51.6]} 40. g3
{[%clk 0:00:03.7]} 40... Qb2 {[%clk 0:00:47.2]} 41. Qa8 {[%clk 0:00:03.6]} 41...
Qxc2+ {[%clk 0:00:46.4]} 42. Kg1 {[%clk 0:00:03.7]} 42... Bd4+ {[%clk
0:00:46.2]} 43. Kf1 {[%clk 0:00:03.6]} 43... Qf2# {[%clk 0:00:45.7]} 0-1

[Event "*** Titled Tuesday Blitz"]
[Site "Chess.com"]
[Date "2020.05.12"]
[Round "7"]
[White "Hikaru"]
[Black "LittlePeasant"]
[Result "1-0"]
[WhiteElo "3243"]
[BlackElo "2786"]
[TimeControl "180+1"]
[EndTime "11:16:27 PDT"]
[Termination "Hikaru won by resignation"]

1. Nf3 {[%clk 0:03:00.9]} 1... d5 {[%clk 0:02:58.8]} 2. b3 {[%clk 0:02:59.4]}
2... Bg4 {[%clk 0:02:57.1]} 3. e3 {[%clk 0:02:59.1]} 3... e6 {[%clk 0:02:51.3]}
4. Bb2 {[%clk 0:02:58.6]} 4... Nf6 {[%clk 0:02:51.7]} 5. d4 {[%clk 0:02:57.9]}
5... c6 {[%clk 0:02:51.8]} 6. Nbd2 {[%clk 0:02:58.2]} 6... Nbd7 {[%clk
0:02:52.1]} 7. h3 {[%clk 0:02:58.4]} 7... Bh5 {[%clk 0:02:52.2]} 8. c4 {[%clk
0:02:57.4]} 8... Bd6 {[%clk 0:02:51.2]} 9. Bd3 {[%clk 0:02:57.8]} 9... O-O
{[%clk 0:02:51.2]} 10. Qc2 {[%clk 0:02:57.5]} 10... Bg6 {[%clk 0:02:46.4]} 11.
Bxg6 {[%clk 0:02:56.9]} 11... hxg6 {[%clk 0:02:47.3]} 12. O-O {[%clk 0:02:57.5]}
12... Rc8 {[%clk 0:02:47.2]} 13. e4 {[%clk 0:02:52]} 13... dxe4 {[%clk
0:02:42.5]} 14. Nxe4 {[%clk 0:02:52.9]} 14... Nxe4 {[%clk 0:02:43.2]} 15. Qxe4
{[%clk 0:02:53.8]} 15... Nf6 {[%clk 0:02:43.8]} 16. Qe2 {[%clk 0:02:53.9]} 16...
Qa5 {[%clk 0:02:40.1]} 17. a3 {[%clk 0:02:51.4]} 17... Rfd8 {[%clk 0:02:36.6]}
18. Rad1 {[%clk 0:02:49.1]} 18... Qf5 {[%clk 0:02:35.9]} 19. Rfe1 {[%clk
0:02:45.7]} 19... g5 {[%clk 0:02:32.4]} 20. Ne5 {[%clk 0:02:31]} 20... Bxe5
{[%clk 0:02:32.3]} 21. dxe5 {[%clk 0:02:31.1]} 21... Nh7 {[%clk 0:02:15.5]} 22.
Rd6 {[%clk 0:02:25]} 22... Rxd6 {[%clk 0:01:52.6]} 23. exd6 {[%clk 0:02:25.9]}
23... Nf8 {[%clk 0:01:52.8]} 24. Qe3 {[%clk 0:02:09.2]} 24... c5 {[%clk
0:01:50.8]} 25. Qg3 {[%clk 0:01:45.3]} 25... f6 {[%clk 0:01:44.3]} 26. Qe3
{[%clk 0:01:32.3]} 26... Rd8 {[%clk 0:01:32.6]} 27. Rd1 {[%clk 0:01:28.5]} 27...
b6 {[%clk 0:01:27.8]} 28. b4 {[%clk 0:01:28.1]} 28... Nd7 {[%clk 0:01:24.4]} 29.
g4 {[%clk 0:01:25.1]} 29... Qc2 {[%clk 0:01:18]} 30. Qxe6+ {[%clk 0:01:19.3]}
30... Kh7 {[%clk 0:00:54]} 31. Qf5+ {[%clk 0:01:06.5]} 31... Qxf5 {[%clk
0:00:53.5]} 32. gxf5 {[%clk 0:01:07.4]} 32... Kg8 {[%clk 0:00:51.7]} 33. Re1
{[%clk 0:01:05.7]} 33... Nf8 {[%clk 0:00:43.4]} 34. Rd1 {[%clk 0:01:05.9]} 34...
Kf7 {[%clk 0:00:39.7]} 35. bxc5 {[%clk 0:01:05.1]} 35... bxc5 {[%clk 0:00:39.5]}
36. Bc3 {[%clk 0:01:05.7]} 36... Nd7 {[%clk 0:00:37.5]} 37. Kg2 {[%clk 0:00:54]}
37... Nb6 {[%clk 0:00:32.4]} 38. Ba5 {[%clk 0:00:54.4]} 38... Rd7 {[%clk
0:00:32.7]} 39. Bxb6 {[%clk 0:00:53.9]} 39... axb6 {[%clk 0:00:33.6]} 40. Kf3
{[%clk 0:00:53.1]} 40... Ke8 {[%clk 0:00:31.4]} 41. Ke4 {[%clk 0:00:52.8]} 41...
Ra7 {[%clk 0:00:29.2]} 42. Kd5 {[%clk 0:00:47.3]} 42... Rxa3 {[%clk 0:00:28.3]}
43. Kc6 {[%clk 0:00:47.2]} 43... Kd8 {[%clk 0:00:27.2]} 44. Re1 {[%clk
0:00:41.3]} 44... Ra7 {[%clk 0:00:17.2]} 45. Kxb6 {[%clk 0:00:36.3]} 45... Ra3
{[%clk 0:00:17.7]} 46. Kc6 {[%clk 0:00:34.5]} 46... Ra6+ {[%clk 0:00:17.1]} 47.
Kxc5 {[%clk 0:00:34.9]} 47... Ra5+ {[%clk 0:00:17.8]} 48. Kc6 {[%clk 0:00:35.3]}
48... Rxf5 {[%clk 0:00:18.7]} 49. Ra1 {[%clk 0:00:33.2]} 1-0

[Event "*** Titled Tuesday Blitz"]
[Site "Chess.com"]
[Date "2020.05.12"]
[Round "7"]
[White "freshfoodcompany"]
[Black "mortngabriel"]
[Result "0-1"]
[WhiteElo "2246"]
[BlackElo "2437"]
[TimeControl "180+1"]
[EndTime "11:16:27 PDT"]
[Termination "mortngabriel won by resignation"]

1. d4 {[%clk 0:03:00.9]} 1... Nf6 {[%clk 0:02:59.6]} 2. c4 {[%clk 0:03:00.5]}
2... e6 {[%clk 0:03:00.2]} 3. Nc3 {[%clk 0:03:00.3]} 3... Bb4 {[%clk 0:03:00.8]}
4. e3 {[%clk 0:03:00.7]} 4... O-O {[%clk 0:03:00.9]} 5. Bd3 {[%clk 0:02:59.3]}
5... d5 {[%clk 0:03:01.2]} 6. Nf3 {[%clk 0:02:59.3]} 6... b6 {[%clk 0:03:00.1]}
7. O-O {[%clk 0:02:58]} 7... Ba6 {[%clk 0:03:00.7]} 8. cxd5 {[%clk 0:02:57.1]}
8... exd5 {[%clk 0:03:01.6]} 9. Bxa6 {[%clk 0:02:56.1]} 9... Nxa6 {[%clk
0:03:02.5]} 10. Qa4 {[%clk 0:02:55.2]} 10... Qc8 {[%clk 0:03:03]} 11. Bd2 {[%clk
0:02:52.9]} 11... Re8 {[%clk 0:02:56.5]} 12. Rac1 {[%clk 0:02:50.4]} 12... Bf8
{[%clk 0:02:52.8]} 13. Nb5 {[%clk 0:02:46.1]} 13... Qb7 {[%clk 0:02:33.1]} 14.
Rc2 {[%clk 0:02:36.7]} 14... c6 {[%clk 0:02:29.4]} 15. Nc3 {[%clk 0:02:29.1]}
15... Nb4 {[%clk 0:02:09.9]} 16. Rcc1 {[%clk 0:02:25.4]} 16... a5 {[%clk
0:02:04.4]} 17. Ne5 {[%clk 0:02:07.5]} 17... b5 {[%clk 0:01:54.3]} 18. Qd1
{[%clk 0:02:01.6]} 18... Nd7 {[%clk 0:01:45.2]} 19. a3 {[%clk 0:01:35.2]} 19...
Nxe5 {[%clk 0:01:44.6]} 20. dxe5 {[%clk 0:01:22.5]} 20... Nd3 {[%clk 0:01:44.2]}
21. Rc2 {[%clk 0:01:21.7]} 21... Nxe5 {[%clk 0:01:43.5]} 22. Qe2 {[%clk
0:01:16.5]} 22... a4 {[%clk 0:01:40.5]} 23. Rfc1 {[%clk 0:01:14]} 23... Nc4
{[%clk 0:01:40.2]} 24. Na2 {[%clk 0:01:09.4]} 24... Qd7 {[%clk 0:01:32.9]} 25.
Bb4 {[%clk 0:01:02.1]} 25... Re6 {[%clk 0:01:27.3]} 26. Bxf8 {[%clk 0:00:59.2]}
26... Rxf8 {[%clk 0:01:28.2]} 27. Nb4 {[%clk 0:00:55.7]} 27... Rfe8 {[%clk
0:01:26.2]} 28. Nd3 {[%clk 0:00:52.4]} 28... Qd6 {[%clk 0:01:22]} 29. Qd1 {[%clk
0:00:41.6]} 29... d4 {[%clk 0:01:02.2]} 30. Nf4 {[%clk 0:00:30.2]} 30... Rf6
{[%clk 0:00:48.5]} 31. Nh5 {[%clk 0:00:23.4]} 31... Rh6 {[%clk 0:00:45.4]} 32.
exd4 {[%clk 0:00:22.9]} 32... Re4 {[%clk 0:00:38.7]} 33. Ng3 {[%clk 0:00:21]}
33... Rxd4 {[%clk 0:00:38.6]} 34. Qe2 {[%clk 0:00:20.6]} 34... Re6 {[%clk
0:00:31.5]} 35. Qf3 {[%clk 0:00:18.7]} 35... g6 {[%clk 0:00:28.7]} 36. h3 {[%clk
0:00:18.4]} 36... h5 {[%clk 0:00:27.2]} 37. Ne2 {[%clk 0:00:17.4]} 37... Rd1+
{[%clk 0:00:22.4]} 38. Rxd1 {[%clk 0:00:16.5]} 38... Qxd1+ {[%clk 0:00:21.8]}
39. Kh2 {[%clk 0:00:16.5]} 39... Qxc2 {[%clk 0:00:22.4]} 40. Nd4 {[%clk
0:00:16.7]} 40... Qe4 {[%clk 0:00:21.4]} 41. Nxe6 {[%clk 0:00:15.9]} 41... Qxf3
{[%clk 0:00:21.7]} 42. gxf3 {[%clk 0:00:16]} 42... fxe6 {[%clk 0:00:21.9]} 0-1

[Event "*** Titled Tuesday Blitz"]
[Site "Chess.com"]
[Date "2020.05.12"]
[Round "7"]
[White "Onischuk_V"]
[Black "Tooweak2slow03"]
[Result "1/2-1/2"]
[WhiteElo "2807"]
[BlackElo "2625"]
[TimeControl "180+1"]
[EndTime "11:16:28 PDT"]
[Termination "Game drawn by repetition"]

1. e4 {[%clk 0:02:59]} 1... e6 {[%clk 0:03:00.9]} 2. d4 {[%clk 0:02:58.5]} 2...
d5 {[%clk 0:03:01.4]} 3. Bd3 {[%clk 0:02:59.1]} 3... c5 {[%clk 0:03:00.4]} 4.
exd5 {[%clk 0:02:58.7]} 4... exd5 {[%clk 0:03:01.3]} 5. Nf3 {[%clk 0:02:55.9]}
5... Nf6 {[%clk 0:02:53.1]} 6. O-O {[%clk 0:02:55.3]} 6... Be7 {[%clk
0:02:53.2]} 7. dxc5 {[%clk 0:02:54.6]} 7... O-O {[%clk 0:02:52.3]} 8. a3 {[%clk
0:02:45.1]} 8... Bxc5 {[%clk 0:02:51]} 9. b4 {[%clk 0:02:45]} 9... Bd6 {[%clk
0:02:51.3]} 10. Bb2 {[%clk 0:02:42.2]} 10... Nc6 {[%clk 0:02:48.4]} 11. Nc3
{[%clk 0:02:30.4]} 11... Bg4 {[%clk 0:02:44.9]} 12. h3 {[%clk 0:02:30]} 12...
Bh5 {[%clk 0:02:40.1]} 13. g4 {[%clk 0:02:27.9]} 13... Bg6 {[%clk 0:02:35.4]}
14. Bxg6 {[%clk 0:02:26.5]} 14... hxg6 {[%clk 0:02:36]} 15. g5 {[%clk
0:02:25.5]} 15... Ne4 {[%clk 0:02:30.1]} 16. h4 {[%clk 0:02:01.9]} 16... Qc8
{[%clk 0:02:20.4]} 17. Nxe4 {[%clk 0:01:47]} 17... dxe4 {[%clk 0:02:19.5]} 18.
Qxd6 {[%clk 0:01:45.4]} 18... exf3 {[%clk 0:02:19.8]} 19. Rfe1 {[%clk
0:01:18.5]} 19... a5 {[%clk 0:02:02.5]} 20. b5 {[%clk 0:01:04.1]} 20... Rd8
{[%clk 0:02:00.5]} 21. Qg3 {[%clk 0:01:02.2]} 21... Nd4 {[%clk 0:01:49.7]} 22.
Bxd4 {[%clk 0:00:55.7]} 22... Rxd4 {[%clk 0:01:50.6]} 23. Qxf3 {[%clk
0:00:55.6]} 23... Qxc2 {[%clk 0:01:44.9]} 24. Re7 {[%clk 0:00:53.9]} 24... Rf8
{[%clk 0:01:35.6]} 25. Rxb7 {[%clk 0:00:45.5]} 25... Rxh4 {[%clk 0:01:31.8]} 26.
Re1 {[%clk 0:00:44.9]} 26... Rh5 {[%clk 0:01:26.8]} 27. Qd5 {[%clk 0:00:31.3]}
27... Qc3 {[%clk 0:01:07.8]} 28. Rbe7 {[%clk 0:00:29.6]} 28... Qh3 {[%clk
0:01:02]} 29. Qg2 {[%clk 0:00:28.4]} 29... Qh4 {[%clk 0:00:58.9]} 30. R7e5
{[%clk 0:00:25.7]} 30... Qd4 {[%clk 0:00:46.2]} 31. Re8 {[%clk 0:00:20.5]} 31...
Qd6 {[%clk 0:00:40.1]} 32. Rxf8+ {[%clk 0:00:19.8]} 32... Qxf8 {[%clk 0:00:41]}
33. b6 {[%clk 0:00:19.6]} 33... Qd8 {[%clk 0:00:40.2]} 34. b7 {[%clk 0:00:16.7]}
34... Rxg5 {[%clk 0:00:39.8]} 35. Re8+ {[%clk 0:00:16.7]} 35... Qxe8 {[%clk
0:00:36.1]} 36. Qxg5 {[%clk 0:00:17.3]} 36... Qe1+ {[%clk 0:00:35.6]} 37. Kh2
{[%clk 0:00:17.6]} 37... Qxf2+ {[%clk 0:00:30.8]} 38. Qg2 {[%clk 0:00:18]} 38...
Qh4+ {[%clk 0:00:29.2]} 39. Kg1 {[%clk 0:00:16]} 39... Qe1+ {[%clk 0:00:29.3]}
40. Kh2 {[%clk 0:00:12.5]} 40... Qh4+ {[%clk 0:00:29.4]} 41. Qh3 {[%clk
0:00:12.1]} 41... Qf2+ {[%clk 0:00:28.7]} 42. Qg2 {[%clk 0:00:10.8]} 42... Qh4+
{[%clk 0:00:28.8]} 1/2-1/2

[Event "*** Titled Tuesday Blitz"]
[Site "Chess.com"]
[Date "2020.05.12"]
[Round "7"]
[White "vaishali2001"]
[Black "Munkhzul_Turmunkh"]
[Result "0-1"]
[WhiteElo "2646"]
[BlackElo "2503"]
[TimeControl "180+1"]
[EndTime "11:16:30 PDT"]
[Termination "Munkhzul_Turmunkh won by resignation"]

1. e4 {[%clk 0:03:00.9]} 1... c5 {[%clk 0:02:57.4]} 2. Nf3 {[%clk 0:03:00.5]}
2... d6 {[%clk 0:02:57.9]} 3. c3 {[%clk 0:02:57.5]} 3... Nf6 {[%clk 0:02:56.8]}
4. Be2 {[%clk 0:02:57.7]} 4... Nc6 {[%clk 0:02:54.3]} 5. d4 {[%clk 0:02:55.8]}
5... cxd4 {[%clk 0:02:51.8]} 6. cxd4 {[%clk 0:02:55.2]} 6... e6 {[%clk
0:02:51.5]} 7. Nc3 {[%clk 0:02:54]} 7... Be7 {[%clk 0:02:51.2]} 8. O-O {[%clk
0:02:53.8]} 8... O-O {[%clk 0:02:51.3]} 9. d5 {[%clk 0:02:49.4]} 9... exd5
{[%clk 0:02:47.4]} 10. exd5 {[%clk 0:02:50.3]} 10... Nb8 {[%clk 0:02:46.8]} 11.
Re1 {[%clk 0:02:49.3]} 11... Re8 {[%clk 0:02:46.5]} 12. Bf4 {[%clk 0:02:45.2]}
12... h6 {[%clk 0:02:40.6]} 13. Rc1 {[%clk 0:02:43.3]} 13... a6 {[%clk
0:02:39.7]} 14. Qd2 {[%clk 0:02:30.2]} 14... Nbd7 {[%clk 0:02:38.2]} 15. Bd3
{[%clk 0:02:25.5]} 15... Nf8 {[%clk 0:02:26.9]} 16. Nd4 {[%clk 0:01:41.6]} 16...
Nh5 {[%clk 0:02:14.3]} 17. Bxh6 {[%clk 0:01:32]} 17... gxh6 {[%clk 0:02:00]} 18.
Qxh6 {[%clk 0:01:32.9]} 18... Ng7 {[%clk 0:02:00.2]} 19. Rxe7 {[%clk 0:00:40.6]}
19... Rxe7 {[%clk 0:01:48.4]} 20. Ne4 {[%clk 0:00:41]} 20... Rxe4 {[%clk
0:01:40.1]} 21. Bxe4 {[%clk 0:00:41.9]} 21... Bd7 {[%clk 0:01:17.5]} 22. Rc3
{[%clk 0:00:38.9]} 22... f5 {[%clk 0:01:12.2]} 23. Bc2 {[%clk 0:00:10.5]} 23...
Qe7 {[%clk 0:01:00.9]} 24. Re3 {[%clk 0:00:07.2]} 24... Qf7 {[%clk 0:01:01]} 25.
Rh3 {[%clk 0:00:07.1]} 25... Qg6 {[%clk 0:00:47.6]} 26. Qh8+ {[%clk 0:00:06.8]}
26... Kf7 {[%clk 0:00:48]} 27. Rg3 {[%clk 0:00:06.8]} 27... Qh7 {[%clk
0:00:48.3]} 28. Qxh7 {[%clk 0:00:04.7]} 28... Nxh7 {[%clk 0:00:49.2]} 29. Rb3
{[%clk 0:00:04.6]} 29... b5 {[%clk 0:00:48.5]} 30. Rc3 {[%clk 0:00:04.8]} 30...
Rc8 {[%clk 0:00:48]} 31. Nc6 {[%clk 0:00:04.6]} 31... Nf6 {[%clk 0:00:45]} 32.
Nb4 {[%clk 0:00:04.2]} 32... Rxc3 {[%clk 0:00:43.7]} 33. bxc3 {[%clk 0:00:05.1]}
33... a5 {[%clk 0:00:44.4]} 34. Na6 {[%clk 0:00:04.3]} 34... Nxd5 {[%clk
0:00:42.6]} 35. Bb3 {[%clk 0:00:04.1]} 35... Be6 {[%clk 0:00:43]} 36. a4 {[%clk
0:00:04.4]} 36... bxa4 {[%clk 0:00:42.6]} 37. Bxa4 {[%clk 0:00:05.3]} 37... Nxc3
{[%clk 0:00:42.9]} 38. Bc6 {[%clk 0:00:05.2]} 38... a4 {[%clk 0:00:42.5]} 39.
Nb4 {[%clk 0:00:05.5]} 39... a3 {[%clk 0:00:42.5]} 40. h4 {[%clk 0:00:05.9]}
40... a2 {[%clk 0:00:41.2]} 41. Nc2 {[%clk 0:00:05.8]} 41... Bd5 {[%clk
0:00:37.3]} 42. Na1 {[%clk 0:00:06.2]} 42... Bxc6 {[%clk 0:00:37.1]} 0-1

[Event "*** Titled Tuesday Blitz"]
[Site "Chess.com"]
[Date "2020.05.12"]
[Round "7"]
[White "m-garcett"]
[Black "Konovalova_Vera"]
[Result "0-1"]
[WhiteElo "1970"]
[BlackElo "2091"]
[TimeControl "180+1"]
[EndTime "11:16:30 PDT"]
[Termination "Konovalova_Vera won by checkmate"]

1. e4 {[%clk 0:03:00.9]} 1... c6 {[%clk 0:02:58.8]} 2. c4 {[%clk 0:03:00]} 2...
d5 {[%clk 0:02:59.3]} 3. cxd5 {[%clk 0:03:00.4]} 3... cxd5 {[%clk 0:02:59.7]} 4.
exd5 {[%clk 0:03:00.8]} 4... Nf6 {[%clk 0:03:00.2]} 5. Nc3 {[%clk 0:03:00.5]}
5... Nbd7 {[%clk 0:02:58.6]} 6. Nf3 {[%clk 0:02:56.5]} 6... Nb6 {[%clk
0:02:58.5]} 7. d4 {[%clk 0:02:55.8]} 7... Nfxd5 {[%clk 0:02:56.9]} 8. Bd3 {[%clk
0:02:42.1]} 8... e6 {[%clk 0:02:52.7]} 9. O-O {[%clk 0:02:41.6]} 9... Be7 {[%clk
0:02:48.4]} 10. a3 {[%clk 0:02:39.2]} 10... O-O {[%clk 0:02:47.9]} 11. Re1
{[%clk 0:02:39.5]} 11... Bd7 {[%clk 0:02:40]} 12. Ne5 {[%clk 0:02:35]} 12... Rc8
{[%clk 0:02:37.5]} 13. Qh5 {[%clk 0:02:07.2]} 13... f5 {[%clk 0:02:29.3]} 14.
Nxd7 {[%clk 0:01:47]} 14... Qxd7 {[%clk 0:02:27.7]} 15. Bd2 {[%clk 0:01:23.5]}
15... Bf6 {[%clk 0:02:21.1]} 16. Nxd5 {[%clk 0:01:16.7]} 16... Nxd5 {[%clk
0:02:19.3]} 17. Be3 {[%clk 0:01:11.3]} 17... g6 {[%clk 0:02:08.5]} 18. Qe2
{[%clk 0:01:08.1]} 18... Rfe8 {[%clk 0:01:56.2]} 19. Rac1 {[%clk 0:01:05.6]}
19... Nxe3 {[%clk 0:01:54]} 20. fxe3 {[%clk 0:01:01]} 20... e5 {[%clk
0:01:48.7]} 21. Bb5 {[%clk 0:00:57.6]} 21... Qd6 {[%clk 0:01:41.5]} 22. Bxe8
{[%clk 0:00:56.1]} 22... Rxe8 {[%clk 0:01:40.8]} 23. Qc4+ {[%clk 0:00:51.4]}
23... Kh8 {[%clk 0:01:35.3]} 24. d5 {[%clk 0:00:45.3]} 24... e4 {[%clk
0:01:30.2]} 25. Red1 {[%clk 0:00:42.7]} 25... Be5 {[%clk 0:01:22.9]} 26. h3
{[%clk 0:00:37.6]} 26... Re7 {[%clk 0:01:17.6]} 27. Qc5 {[%clk 0:00:33]} 27...
Qf6 {[%clk 0:00:44.2]} 28. d6 {[%clk 0:00:30.5]} 28... Rd7 {[%clk 0:00:38.6]}
29. Qc8+ {[%clk 0:00:23.7]} 29... Rd8 {[%clk 0:00:38]} 30. d7 {[%clk 0:00:22.5]}
30... Kg7 {[%clk 0:00:28.2]} 31. Qxb7 {[%clk 0:00:22.2]} 31... Qh4 {[%clk
0:00:16.4]} 32. Rc8 {[%clk 0:00:11]} 32... Qg3 {[%clk 0:00:13.1]} 33. Rd2 {[%clk
0:00:06.3]} 33... Qe1# {[%clk 0:00:11.3]} 0-1